[Event "Late-Titled-Tuesday-Blitz-October-03-2023"]
[Site "Chess.com"]
[Date "2023.10.03"]
[Round "7"]
[White "BillieKimbah"]
[Black "nihalsarin"]
[Result "1-0"]
[WhiteElo "2977"]
[BlackElo "3057"]
[TimeControl "180+1"]
[EndTime "15:14:56 PDT"]
[Termination "BillieKimbah won on time"]

1. d4 {[%clk 0:02:57.9]} 1... a6 {[%clk 0:03:00.7]} 2. h4 {[%clk 0:02:55.1]}
2... d5 {[%clk 0:02:56.4]} 3. h5 {[%clk 0:02:55.2]} 3... h6 {[%clk 0:02:54]} 4.
Nc3 {[%clk 0:02:54.3]} 4... Nf6 {[%clk 0:02:53.6]} 5. Bf4 {[%clk 0:02:50.5]}
5... Bg4 {[%clk 0:02:50.2]} 6. Qd3 {[%clk 0:02:39.9]} 6... e6 {[%clk 0:02:39]}
7. Qg3 {[%clk 0:02:20.8]} 7... Bxh5 {[%clk 0:02:19.9]} 8. Bxc7 {[%clk
0:02:14.1]} 8... Qc8 {[%clk 0:02:20.5]} 9. Bd6 {[%clk 0:01:35]} 9... Bxd6 {[%clk
0:01:47]} 10. Qxd6 {[%clk 0:01:35.9]} 10... Bg6 {[%clk 0:01:47.7]} 11. Nf3
{[%clk 0:01:31]} 11... Nc6 {[%clk 0:01:43]} 12. O-O-O {[%clk 0:01:25.2]} 12...
b5 {[%clk 0:01:39.3]} 13. a3 {[%clk 0:01:11.5]} 13... Rb8 {[%clk 0:01:25.8]} 14.
e3 {[%clk 0:01:06.6]} 14... b4 {[%clk 0:01:25.8]} 15. axb4 {[%clk 0:01:05.5]}
15... Nxb4 {[%clk 0:01:26.7]} 16. Bd3 {[%clk 0:01:04.5]} 16... Bxd3 {[%clk
0:00:47.1]} 17. cxd3 {[%clk 0:01:05.4]} 17... Qd8 {[%clk 0:00:47.7]} 18. Qxd8+
{[%clk 0:00:55.6]} 18... Kxd8 {[%clk 0:00:48.6]} 19. Ne5 {[%clk 0:00:55.7]}
19... Ke7 {[%clk 0:00:49.3]} 20. Kd2 {[%clk 0:00:54.1]} 20... Rhc8 {[%clk
0:00:47.9]} 21. Ra1 {[%clk 0:00:54]} 21... Nc6 {[%clk 0:00:35.7]} 22. Kc2 {[%clk
0:00:50.2]} 22... Nxe5 {[%clk 0:00:30.1]} 23. dxe5 {[%clk 0:00:51.1]} 23... Ng4
{[%clk 0:00:30.8]} 24. Rxa6 {[%clk 0:00:47.9]} 24... Rb7 {[%clk 0:00:31.4]} 25.
Rha1 {[%clk 0:00:43.9]} 25... Nxf2 {[%clk 0:00:15.8]} 26. Ra7 {[%clk 0:00:43.5]}
26... Rcc7 {[%clk 0:00:16.5]} 27. Rxb7 {[%clk 0:00:42.7]} 27... Rxb7 {[%clk
0:00:17.4]} 28. Ra4 {[%clk 0:00:38.6]} 28... h5 {[%clk 0:00:17.2]} 29. b4 {[%clk
0:00:36.7]} 29... Ng4 {[%clk 0:00:17.3]} 30. Kd2 {[%clk 0:00:31.6]} 30... Nxe5
{[%clk 0:00:18]} 31. b5 {[%clk 0:00:31.9]} 31... Nd7 {[%clk 0:00:18.8]} 32. e4
{[%clk 0:00:21.3]} 32... Nc5 {[%clk 0:00:18]} 33. Rb4 {[%clk 0:00:17.3]} 33...
d4 {[%clk 0:00:17.3]} 34. Nd1 {[%clk 0:00:11.3]} 34... e5 {[%clk 0:00:15.7]} 35.
Nb2 {[%clk 0:00:11.5]} 35... Ke6 {[%clk 0:00:15.4]} 36. Nc4 {[%clk 0:00:11.7]}
36... g6 {[%clk 0:00:16.1]} 37. b6 {[%clk 0:00:11.3]} 37... Nd7 {[%clk
0:00:16.5]} 38. Rb5 {[%clk 0:00:10.8]} 38... f6 {[%clk 0:00:13.5]} 39. Rd5
{[%clk 0:00:10.9]} 39... Ke7 {[%clk 0:00:10.8]} 40. Rd6 {[%clk 0:00:10.7]} 40...
Rb8 {[%clk 0:00:09]} 41. Rc6 {[%clk 0:00:10.9]} 41... Kd8 {[%clk 0:00:08.2]} 42.
Kc2 {[%clk 0:00:07.5]} 42... Rc8 {[%clk 0:00:08.4]} 43. Re6 {[%clk 0:00:06.6]}
43... Rc5 {[%clk 0:00:06.4]} 44. Kd2 {[%clk 0:00:02.5]} 44... Rb5 {[%clk
0:00:06.8]} 45. g3 {[%clk 0:00:02.6]} 45... Rb3 {[%clk 0:00:06.6]} 46. Kc2
{[%clk 0:00:02.7]} 46... Rc3+ {[%clk 0:00:07]} 47. Kb2 {[%clk 0:00:01.5]} 47...
Rxd3 {[%clk 0:00:07.6]} 48. b7 {[%clk 0:00:01.9]} 48... Rc3 {[%clk 0:00:06.3]}
49. Rd6 {[%clk 0:00:01]} 49... Kc7 {[%clk 0:00:03.7]} 50. Rxd7+ {[%clk
0:00:01.5]} 50... Kb8 {[%clk 0:00:04.6]} 51. Na5 {[%clk 0:00:01.4]} 51... Ka7
{[%clk 0:00:02.8]} 52. Rd8 {[%clk 0:00:01.9]} 1-0

[Event "Late-Titled-Tuesday-Blitz-October-03-2023"]
[Site "Chess.com"]
[Date "2023.10.03"]
[Round "7"]
[White "MathiasCasalaspro"]
[Black "MathiasWomacka"]
[Result "1/2-1/2"]
[WhiteElo "2362"]
[BlackElo "2509"]
[TimeControl "180+1"]
[EndTime "15:14:59 PDT"]
[Termination "Game drawn by repetition"]

1. d4 {[%clk 0:03:00.9]} 1... Nf6 {[%clk 0:02:59]} 2. Bg5 {[%clk 0:03:00.4]}
2... Ne4 {[%clk 0:02:58.5]} 3. h4 {[%clk 0:03:00.5]} 3... c5 {[%clk 0:02:58.1]}
4. d5 {[%clk 0:03:00.8]} 4... Qb6 {[%clk 0:02:56.5]} 5. Nd2 {[%clk 0:03:01.2]}
5... Nxd2 {[%clk 0:02:48.2]} 6. Bxd2 {[%clk 0:03:02.1]} 6... Qxb2 {[%clk
0:02:47.7]} 7. e4 {[%clk 0:03:01.7]} 7... Qb6 {[%clk 0:02:39.2]} 8. Nf3 {[%clk
0:03:01.2]} 8... d6 {[%clk 0:02:38.8]} 9. Rb1 {[%clk 0:02:54.6]} 9... Qc7 {[%clk
0:02:37.6]} 10. a4 {[%clk 0:02:47.6]} 10... e5 {[%clk 0:02:34.8]} 11. h5 {[%clk
0:02:39.2]} 11... Be7 {[%clk 0:02:27.1]} 12. h6 {[%clk 0:02:33.7]} 12... g6
{[%clk 0:02:26.6]} 13. Bg5 {[%clk 0:02:31.8]} 13... Bxg5 {[%clk 0:02:17.8]} 14.
Nxg5 {[%clk 0:02:32.7]} 14... Qa5+ {[%clk 0:02:06.5]} 15. Qd2 {[%clk 0:02:26.1]}
15... Qxd2+ {[%clk 0:02:05.5]} 16. Kxd2 {[%clk 0:02:27]} 16... Ke7 {[%clk
0:01:58.5]} 17. a5 {[%clk 0:02:20.8]} 17... Nd7 {[%clk 0:01:50.9]} 18. f3 {[%clk
0:02:12.5]} 18... Rb8 {[%clk 0:01:50.5]} 19. g4 {[%clk 0:02:09.8]} 19... Nf8
{[%clk 0:01:45.6]} 20. Bc4 {[%clk 0:02:03.4]} 20... f6 {[%clk 0:01:44]} 21. Nh3
{[%clk 0:02:02.3]} 21... g5 {[%clk 0:01:43.8]} 22. Rb2 {[%clk 0:01:48]} 22...
Ng6 {[%clk 0:01:41.9]} 23. Rhb1 {[%clk 0:01:47.3]} 23... Kd8 {[%clk 0:01:27.3]}
24. Nf2 {[%clk 0:01:30.2]} 24... Kc7 {[%clk 0:01:26.9]} 25. Nh1 {[%clk
0:01:30.2]} 25... Nh4 {[%clk 0:01:19.5]} 26. Ke2 {[%clk 0:01:27.7]} 26... Rg8
{[%clk 0:01:19.1]} 27. Ng3 {[%clk 0:01:27.1]} 27... Rg6 {[%clk 0:01:18.5]} 28.
Nh5 {[%clk 0:01:18]} 28... Rxh6 {[%clk 0:01:17.7]} 29. Ng7 {[%clk 0:01:15.4]}
29... Rg6 {[%clk 0:01:15]} 30. Ne6+ {[%clk 0:01:06]} 30... Bxe6 {[%clk
0:01:08.9]} 31. dxe6 {[%clk 0:01:06.9]} 31... Rg7 {[%clk 0:01:01.1]} 32. Kf2
{[%clk 0:01:03.9]} 32... Ng6 {[%clk 0:00:53.2]} 33. Bd5 {[%clk 0:01:02.4]} 33...
Kc8 {[%clk 0:00:52.2]} 34. Rh1 {[%clk 0:00:53.7]} 34... Nf4 {[%clk 0:00:50.4]}
35. Ke3 {[%clk 0:00:51]} 35... Kc7 {[%clk 0:00:39.7]} 36. Rh6 {[%clk 0:00:41.4]}
36... Ng6 {[%clk 0:00:38.5]} 37. c4 {[%clk 0:00:35.9]} 37... Re7 {[%clk
0:00:37.5]} 38. Rbh2 {[%clk 0:00:34]} 38... b6 {[%clk 0:00:25.6]} 39. axb6+
{[%clk 0:00:21.9]} 39... Rxb6 {[%clk 0:00:21.1]} 40. Rxh7 {[%clk 0:00:20]} 40...
Rb3+ {[%clk 0:00:20.5]} 41. Kf2 {[%clk 0:00:15]} 41... Rb2+ {[%clk 0:00:20.2]}
42. Kg3 {[%clk 0:00:14.7]} 42... Rxh2 {[%clk 0:00:18.4]} 43. Rxh2 {[%clk
0:00:13.9]} 43... a5 {[%clk 0:00:13.6]} 44. Rb2 {[%clk 0:00:13.3]} 44... Kc8
{[%clk 0:00:11.4]} 45. Ra2 {[%clk 0:00:11.5]} 45... Ra7 {[%clk 0:00:11.2]} 46.
Rh2 {[%clk 0:00:08.6]} 46... a4 {[%clk 0:00:10]} 47. Ra2 {[%clk 0:00:05.6]}
47... a3 {[%clk 0:00:10.2]} 48. Kf2 {[%clk 0:00:05.9]} 48... Kd8 {[%clk
0:00:07.9]} 49. Ke3 {[%clk 0:00:06.1]} 49... Nf4 {[%clk 0:00:07.8]} 50. Kd2
{[%clk 0:00:03.8]} 50... Ke7 {[%clk 0:00:07.8]} 51. Kc3 {[%clk 0:00:04.2]} 51...
Nxe6 {[%clk 0:00:08.3]} 52. Bxe6 {[%clk 0:00:04.2]} 52... Kxe6 {[%clk
0:00:08.1]} 53. Kb3 {[%clk 0:00:04.4]} 53... Kd7 {[%clk 0:00:07.7]} 54. Rxa3
{[%clk 0:00:02.3]} 54... Rxa3+ {[%clk 0:00:07.1]} 55. Kxa3 {[%clk 0:00:03.2]}
55... Kc6 {[%clk 0:00:06.7]} 56. Ka4 {[%clk 0:00:03.8]} 56... Kb6 {[%clk
0:00:07]} 57. Ka3 {[%clk 0:00:04.4]} 57... Ka6 {[%clk 0:00:07.2]} 58. Ka4 {[%clk
0:00:04.5]} 58... Kb6 {[%clk 0:00:07.5]} 59. Ka3 {[%clk 0:00:05.1]} 59... Ka5
{[%clk 0:00:08.4]} 60. Kb3 {[%clk 0:00:05.6]} 60... Kb6 {[%clk 0:00:08.2]} 61.
Ka4 {[%clk 0:00:06.1]} 61... Ka6 {[%clk 0:00:08.3]} 62. Ka3 {[%clk 0:00:06.8]}
62... Ka5 {[%clk 0:00:09]} 63. Kb3 {[%clk 0:00:07.5]} 63... Kb6 {[%clk
0:00:09.2]} 64. Ka4 {[%clk 0:00:08.1]} 64... Ka6 {[%clk 0:00:10.1]} 65. Ka3
{[%clk 0:00:08.7]} 65... Ka5 {[%clk 0:00:11]} 1/2-1/2

[Event "Late-Titled-Tuesday-Blitz-October-03-2023"]
[Site "Chess.com"]
[Date "2023.10.03"]
[Round "7"]
[White "Beca95"]
[Black "vugarrasulov"]
[Result "1/2-1/2"]
[WhiteElo "3010"]
[BlackElo "2969"]
[TimeControl "180+1"]
[EndTime "15:15:02 PDT"]
[Termination "Game drawn - insufficient material"]

1. e4 {[%clk 0:02:58.1]} 1... c5 {[%clk 0:02:59.7]} 2. Nc3 {[%clk 0:02:54.9]}
2... e6 {[%clk 0:02:57.3]} 3. Nge2 {[%clk 0:02:48.6]} 3... a6 {[%clk 0:02:55.1]}
4. g3 {[%clk 0:02:47.7]} 4... d5 {[%clk 0:02:50.3]} 5. exd5 {[%clk 0:02:47]}
5... exd5 {[%clk 0:02:51.2]} 6. d4 {[%clk 0:02:46.3]} 6... Nf6 {[%clk
0:02:49.7]} 7. Bg2 {[%clk 0:02:45.8]} 7... Nc6 {[%clk 0:02:48.5]} 8. O-O {[%clk
0:02:40.7]} 8... cxd4 {[%clk 0:02:48.6]} 9. Nxd4 {[%clk 0:02:40.3]} 9... Be7
{[%clk 0:02:49.2]} 10. Bg5 {[%clk 0:02:30.1]} 10... O-O {[%clk 0:02:48.2]} 11.
Nb3 {[%clk 0:02:30.3]} 11... Be6 {[%clk 0:02:39.3]} 12. Rb1 {[%clk 0:02:25.9]}
12... Qb6 {[%clk 0:02:17.8]} 13. Bxf6 {[%clk 0:02:24.9]} 13... Bxf6 {[%clk
0:02:18.7]} 14. Nxd5 {[%clk 0:02:24.4]} 14... Bxd5 {[%clk 0:02:19.3]} 15. Qxd5
{[%clk 0:02:23.5]} 15... Rad8 {[%clk 0:02:17.3]} 16. Qc5 {[%clk 0:02:20.3]}
16... Qc7 {[%clk 0:01:50]} 17. c3 {[%clk 0:02:20.2]} 17... Rc8 {[%clk
0:01:43.5]} 18. Bxc6 {[%clk 0:02:16.4]} 18... Qb8 {[%clk 0:01:31.4]} 19. Rbd1
{[%clk 0:01:59.1]} 19... Rxc6 {[%clk 0:01:31.6]} 20. Qf5 {[%clk 0:01:56.4]}
20... g6 {[%clk 0:01:22.9]} 21. Qf3 {[%clk 0:01:55.9]} 21... Qc7 {[%clk
0:01:22.4]} 22. Rd5 {[%clk 0:01:52.5]} 22... Rd8 {[%clk 0:01:18.5]} 23. Rfd1
{[%clk 0:01:52.3]} 23... Rxd5 {[%clk 0:01:19]} 24. Qxd5 {[%clk 0:01:52.5]} 24...
Re6 {[%clk 0:01:14]} 25. Kg2 {[%clk 0:01:51]} 25... Kg7 {[%clk 0:01:12.6]} 26.
Qd7 {[%clk 0:01:49.1]} 26... Qb6 {[%clk 0:01:05.9]} 27. Rd2 {[%clk 0:01:42.9]}
27... h5 {[%clk 0:01:06.3]} 28. h4 {[%clk 0:01:42.1]} 28... Re1 {[%clk
0:00:56.9]} 29. Qd5 {[%clk 0:01:38.4]} 29... Qc7 {[%clk 0:00:32.9]} 30. Qf3
{[%clk 0:01:25.4]} 30... Qc4 {[%clk 0:00:31.3]} 31. Qd3 {[%clk 0:01:22.1]} 31...
Qc6+ {[%clk 0:00:30.8]} 32. Qd5 {[%clk 0:01:22.3]} 32... Qc7 {[%clk 0:00:28]}
33. Nd4 {[%clk 0:01:19.5]} 33... b5 {[%clk 0:00:26.6]} 34. Nf3 {[%clk
0:01:18.7]} 34... Ra1 {[%clk 0:00:26.5]} 35. a3 {[%clk 0:01:17.5]} 35... Qe7
{[%clk 0:00:23.1]} 36. Rd1 {[%clk 0:01:12.8]} 36... Rxd1 {[%clk 0:00:22.3]} 37.
Qxd1 {[%clk 0:01:13.7]} 37... Qe4 {[%clk 0:00:22.7]} 38. Kf1 {[%clk 0:01:13.2]}
38... a5 {[%clk 0:00:21.8]} 39. Qe2 {[%clk 0:01:13.5]} 39... Qd5 {[%clk
0:00:20.8]} 40. Kg2 {[%clk 0:01:08.1]} 40... Qb7 {[%clk 0:00:20]} 41. Qd3 {[%clk
0:01:05.2]} 41... b4 {[%clk 0:00:20.3]} 42. axb4 {[%clk 0:01:05]} 42... axb4
{[%clk 0:00:21.2]} 43. cxb4 {[%clk 0:01:05.3]} 43... Qxb4 {[%clk 0:00:21.1]} 44.
b3 {[%clk 0:01:05.3]} 44... Qb7 {[%clk 0:00:21.1]} 45. Kg1 {[%clk 0:01:04]}
45... Qc6 {[%clk 0:00:20.9]} 46. Nd2 {[%clk 0:01:03.8]} 46... Qc1+ {[%clk
0:00:20.7]} 47. Kg2 {[%clk 0:01:03.8]} 47... Qd1 {[%clk 0:00:21.2]} 48. Qd6
{[%clk 0:00:57.6]} 48... Bc3 {[%clk 0:00:15]} 49. Ne4 {[%clk 0:00:56]} 49... Qc2
{[%clk 0:00:07.5]} 50. Qd5 {[%clk 0:00:52.5]} 50... Bf6 {[%clk 0:00:05.2]} 51.
b4 {[%clk 0:00:51.4]} 51... Qc7 {[%clk 0:00:04.5]} 52. Nxf6 {[%clk 0:00:50.1]}
52... Kxf6 {[%clk 0:00:04.5]} 53. b5 {[%clk 0:00:50.6]} 53... Ke7 {[%clk
0:00:04.6]} 54. Qe4+ {[%clk 0:00:44.7]} 54... Kd7 {[%clk 0:00:04]} 55. Qd4+
{[%clk 0:00:44.9]} 55... Kc8 {[%clk 0:00:02.8]} 56. Qd5 {[%clk 0:00:43.9]} 56...
Kb8 {[%clk 0:00:02.9]} 57. Kf3 {[%clk 0:00:41]} 57... Ka7 {[%clk 0:00:03.6]} 58.
Qc6 {[%clk 0:00:38.2]} 58... Qxc6+ {[%clk 0:00:02.5]} 59. bxc6 {[%clk
0:00:38.1]} 59... Kb6 {[%clk 0:00:03.4]} 60. Ke4 {[%clk 0:00:37.3]} 60... Kxc6
{[%clk 0:00:04.1]} 61. Ke5 {[%clk 0:00:37.8]} 61... Kd7 {[%clk 0:00:04.8]} 62.
Kf6 {[%clk 0:00:38.3]} 62... Ke8 {[%clk 0:00:05.5]} 63. Kg7 {[%clk 0:00:28]}
63... Ke7 {[%clk 0:00:05.8]} 64. f3 {[%clk 0:00:28.6]} 64... Ke6 {[%clk
0:00:06]} 65. g4 {[%clk 0:00:29.2]} 65... hxg4 {[%clk 0:00:05.1]} 66. fxg4
{[%clk 0:00:29.6]} 66... f5 {[%clk 0:00:05.8]} 67. h5 {[%clk 0:00:29.8]} 67...
fxg4 {[%clk 0:00:05.7]} 68. h6 {[%clk 0:00:27.3]} 68... g3 {[%clk 0:00:06.3]}
69. h7 {[%clk 0:00:27.9]} 69... g2 {[%clk 0:00:07.2]} 70. h8=Q {[%clk
0:00:27.7]} 70... g1=Q {[%clk 0:00:08.1]} 71. Qc8+ {[%clk 0:00:27.1]} 71... Kd6
{[%clk 0:00:08.3]} 72. Qd8+ {[%clk 0:00:26.6]} 72... Ke6 {[%clk 0:00:08.8]} 73.
Qf6+ {[%clk 0:00:26.7]} 73... Kd7 {[%clk 0:00:09.1]} 74. Qxg6 {[%clk 0:00:27.3]}
74... Qxg6+ {[%clk 0:00:08.7]} 75. Kxg6 {[%clk 0:00:28.2]} 1/2-1/2

[Event "Late-Titled-Tuesday-Blitz-October-03-2023"]
[Site "Chess.com"]
[Date "2023.10.03"]
[Round "7"]
[White "Njal28"]
[Black "chesskov1982"]
[Result "1/2-1/2"]
[WhiteElo "3082"]
[BlackElo "2852"]
[TimeControl "180+1"]
[EndTime "15:15:05 PDT"]
[Termination "Game drawn - insufficient material"]

1. d4 {[%clk 0:03:00.9]} 1... d5 {[%clk 0:02:59.1]} 2. c4 {[%clk 0:03:00]} 2...
c6 {[%clk 0:02:59.4]} 3. Nc3 {[%clk 0:02:58.6]} 3... Nf6 {[%clk 0:02:59.6]} 4.
Nf3 {[%clk 0:02:59.2]} 4... e6 {[%clk 0:02:58.4]} 5. Bg5 {[%clk 0:02:59.1]} 5...
h6 {[%clk 0:02:55.8]} 6. Bxf6 {[%clk 0:02:59.2]} 6... Qxf6 {[%clk 0:02:55.3]} 7.
a3 {[%clk 0:02:55.1]} 7... g6 {[%clk 0:02:52.5]} 8. e4 {[%clk 0:02:55.1]} 8...
dxe4 {[%clk 0:02:52.3]} 9. Nxe4 {[%clk 0:02:56]} 9... Qd8 {[%clk 0:02:51.7]} 10.
g3 {[%clk 0:02:40.6]} 10... Bg7 {[%clk 0:02:51.2]} 11. Bg2 {[%clk 0:02:41.1]}
11... O-O {[%clk 0:02:50.2]} 12. O-O {[%clk 0:02:41.4]} 12... Nd7 {[%clk
0:02:50.4]} 13. Re1 {[%clk 0:02:39.1]} 13... Qc7 {[%clk 0:02:34.5]} 14. Rc1
{[%clk 0:02:38]} 14... e5 {[%clk 0:02:30.5]} 15. c5 {[%clk 0:01:56.9]} 15...
exd4 {[%clk 0:02:28.5]} 16. Nd6 {[%clk 0:01:57.5]} 16... Nf6 {[%clk 0:02:26.5]}
17. Nxd4 {[%clk 0:01:54]} 17... Rd8 {[%clk 0:02:11.2]} 18. Qb3 {[%clk
0:01:46.3]} 18... Bf8 {[%clk 0:02:07.8]} 19. Qe3 {[%clk 0:01:13.8]} 19... Kg7
{[%clk 0:01:48.6]} 20. Rcd1 {[%clk 0:00:15.2]} 20... Bxd6 {[%clk 0:01:39.7]} 21.
cxd6 {[%clk 0:00:15.7]} 21... Rxd6 {[%clk 0:01:38.1]} 22. Qe5 {[%clk 0:00:15.6]}
22... Rd7 {[%clk 0:01:31.9]} 23. Qxc7 {[%clk 0:00:06.2]} 23... Rxc7 {[%clk
0:01:32.8]} 24. Nb3 {[%clk 0:00:05.3]} 24... Bg4 {[%clk 0:01:29.1]} 25. f3
{[%clk 0:00:05.3]} 25... Be6 {[%clk 0:01:29.2]} 26. Nc5 {[%clk 0:00:06]} 26...
Bd5 {[%clk 0:01:28.3]} 27. f4 {[%clk 0:00:06.7]} 27... Bxg2 {[%clk 0:01:28.1]}
28. Kxg2 {[%clk 0:00:07.6]} 28... Nd5 {[%clk 0:01:25.3]} 29. Rd2 {[%clk
0:00:04.5]} 29... b6 {[%clk 0:01:24.5]} 30. Nd3 {[%clk 0:00:04.8]} 30... Rd8
{[%clk 0:01:23.5]} 31. Ree2 {[%clk 0:00:01.9]} 31... Rcd7 {[%clk 0:01:19.6]} 32.
Rc2 {[%clk 0:00:02.1]} 32... c5 {[%clk 0:01:17.6]} 33. Ne5 {[%clk 0:00:02.7]}
33... Re7 {[%clk 0:01:04]} 34. Kf2 {[%clk 0:00:03.6]} 34... Rde8 {[%clk
0:00:59.2]} 35. Nc6 {[%clk 0:00:04.3]} 35... Rxe2+ {[%clk 0:00:56.9]} 36. Rxe2
{[%clk 0:00:05.2]} 36... Rxe2+ {[%clk 0:00:53.9]} 37. Kxe2 {[%clk 0:00:06.1]}
37... a6 {[%clk 0:00:50.9]} 38. Kd3 {[%clk 0:00:06.8]} 38... Kf6 {[%clk
0:00:48]} 39. Nb8 {[%clk 0:00:07.4]} 39... a5 {[%clk 0:00:45.9]} 40. Kc4 {[%clk
0:00:07.7]} 40... Ke6 {[%clk 0:00:42.7]} 41. Kb5 {[%clk 0:00:08.1]} 41... g5
{[%clk 0:00:38.6]} 42. Nc6 {[%clk 0:00:08.1]} 42... gxf4 {[%clk 0:00:36.9]} 43.
gxf4 {[%clk 0:00:09]} 43... Kd6 {[%clk 0:00:26.5]} 44. Ne5 {[%clk 0:00:08.3]}
44... f5 {[%clk 0:00:22.8]} 45. Nc4+ {[%clk 0:00:02.4]} 45... Kc7 {[%clk
0:00:21]} 46. h4 {[%clk 0:00:02.4]} 46... h5 {[%clk 0:00:18.2]} 47. a4 {[%clk
0:00:01.3]} 47... Nxf4 {[%clk 0:00:15.4]} 48. Nxb6 {[%clk 0:00:02]} 48... Ng6
{[%clk 0:00:12.3]} 49. Kxc5 {[%clk 0:00:02.5]} 49... f4 {[%clk 0:00:10.6]} 50.
Nd5+ {[%clk 0:00:02.3]} 50... Kb7 {[%clk 0:00:06.9]} 51. Kd4 {[%clk 0:00:03.1]}
51... f3 {[%clk 0:00:04.6]} 52. Ke3 {[%clk 0:00:04]} 52... Nxh4 {[%clk 0:00:05]}
53. Nf4 {[%clk 0:00:04.1]} 53... Kb6 {[%clk 0:00:03.9]} 54. Nxh5 {[%clk
0:00:04.1]} 54... Kc5 {[%clk 0:00:03.8]} 55. Nf4 {[%clk 0:00:02.5]} 55... Kb4
{[%clk 0:00:04.1]} 56. Kf2 {[%clk 0:00:01.4]} 56... Kxa4 {[%clk 0:00:04.3]} 57.
Nd3 {[%clk 0:00:01.9]} 57... Kb3 {[%clk 0:00:02.4]} 58. Kg3 {[%clk 0:00:02.6]}
58... Kc2 {[%clk 0:00:02.7]} 59. Nc5 {[%clk 0:00:01.6]} 59... Kxb2 {[%clk
0:00:02.6]} 60. Nd3+ {[%clk 0:00:01.6]} 60... Kc3 {[%clk 0:00:02.9]} 61. Nc5
{[%clk 0:00:02]} 61... Kb4 {[%clk 0:00:02.9]} 62. Nd3+ {[%clk 0:00:02.7]} 62...
Ka3 {[%clk 0:00:03.1]} 63. Kxh4 {[%clk 0:00:02.3]} 63... a4 {[%clk 0:00:03.7]}
64. Kg3 {[%clk 0:00:02.9]} 64... Kb3 {[%clk 0:00:03.1]} 65. Nc5+ {[%clk
0:00:03]} 65... Kb4 {[%clk 0:00:02.6]} 66. Nxa4 {[%clk 0:00:03.9]} 66... f2
{[%clk 0:00:03.2]} 67. Kxf2 {[%clk 0:00:04.8]} 1/2-1/2

[Event "Late-Titled-Tuesday-Blitz-October-03-2023"]
[Site "Chess.com"]
[Date "2023.10.03"]
[Round "7"]
[White "GaiozNigalidze"]
[Black "SanchezKelvin"]
[Result "0-1"]
[WhiteElo "2742"]
[BlackElo "2588"]
[TimeControl "180+1"]
[EndTime "15:15:09 PDT"]
[Termination "SanchezKelvin won by resignation"]

1. d4 {[%clk 0:03:00.9]} 1... Nf6 {[%clk 0:02:52.2]} 2. c4 {[%clk 0:03:00.6]}
2... e6 {[%clk 0:02:52]} 3. Nf3 {[%clk 0:02:59.9]} 3... b6 {[%clk 0:02:51.9]} 4.
g3 {[%clk 0:02:59.5]} 4... Bb7 {[%clk 0:02:52]} 5. Bg2 {[%clk 0:03:00]} 5... c5
{[%clk 0:02:52.3]} 6. dxc5 {[%clk 0:02:57.9]} 6... Bxc5 {[%clk 0:02:49.9]} 7.
O-O {[%clk 0:02:58]} 7... O-O {[%clk 0:02:48.8]} 8. b3 {[%clk 0:02:58.1]} 8...
Be7 {[%clk 0:02:47.8]} 9. Bb2 {[%clk 0:02:57.5]} 9... d6 {[%clk 0:02:48.1]} 10.
Nc3 {[%clk 0:02:55.9]} 10... a6 {[%clk 0:02:48.2]} 11. Qd4 {[%clk 0:02:48.6]}
11... Nbd7 {[%clk 0:02:46.3]} 12. Rfd1 {[%clk 0:02:47.7]} 12... Qc7 {[%clk
0:02:44.7]} 13. Ba3 {[%clk 0:02:40.8]} 13... Nc5 {[%clk 0:02:41.5]} 14. h3
{[%clk 0:02:36.6]} 14... Rfd8 {[%clk 0:02:39.8]} 15. Rac1 {[%clk 0:02:30.9]}
15... Rac8 {[%clk 0:02:39]} 16. Qf4 {[%clk 0:02:28.3]} 16... Qb8 {[%clk
0:02:28.4]} 17. Nd2 {[%clk 0:02:24.9]} 17... Bxg2 {[%clk 0:02:26.1]} 18. Kxg2
{[%clk 0:02:25.8]} 18... b5 {[%clk 0:02:24.8]} 19. cxb5 {[%clk 0:02:19.8]} 19...
axb5 {[%clk 0:02:23.1]} 20. Bb4 {[%clk 0:02:18]} 20... Na6 {[%clk 0:02:07.7]}
21. Ba5 {[%clk 0:02:16.8]} 21... Rd7 {[%clk 0:02:02.4]} 22. Nce4 {[%clk
0:01:41.7]} 22... Nd5 {[%clk 0:01:49]} 23. Qf3 {[%clk 0:01:35.9]} 23... Rxc1
{[%clk 0:01:44.4]} 24. Rxc1 {[%clk 0:01:36]} 24... Qa8 {[%clk 0:01:31.5]} 25. a3
{[%clk 0:01:24.4]} 25... Nc5 {[%clk 0:01:16.4]} 26. Bb4 {[%clk 0:01:09.7]} 26...
Qa7 {[%clk 0:00:51.4]} 27. h4 {[%clk 0:00:47.4]} 27... h6 {[%clk 0:00:49.6]} 28.
Rc2 {[%clk 0:00:44.5]} 28... f5 {[%clk 0:00:43.7]} 29. Nc3 {[%clk 0:00:37.1]}
29... Nxc3 {[%clk 0:00:38.5]} 30. Rxc3 {[%clk 0:00:37.1]} 30... Bf6 {[%clk
0:00:33.3]} 31. Re3 {[%clk 0:00:33.3]} 31... Be5 {[%clk 0:00:15.4]} 32. Qc6
{[%clk 0:00:21.5]} 32... Qb7 {[%clk 0:00:13.1]} 33. Qxb7 {[%clk 0:00:17.9]}
33... Nxb7 {[%clk 0:00:12.8]} 34. Nf3 {[%clk 0:00:18.2]} 34... Bf6 {[%clk
0:00:07]} 35. Rxe6 {[%clk 0:00:18.2]} 35... Kf7 {[%clk 0:00:07.6]} 36. Re3
{[%clk 0:00:18.2]} 36... Nc5 {[%clk 0:00:06.5]} 37. Ne1 {[%clk 0:00:14]} 37...
Ne4 {[%clk 0:00:06.6]} 38. Rd3 {[%clk 0:00:13.1]} 38... Ke6 {[%clk 0:00:05.6]}
39. Nf3 {[%clk 0:00:13.3]} 39... Be5 {[%clk 0:00:05.3]} 40. Nd4+ {[%clk
0:00:12.7]} 40... Bxd4 {[%clk 0:00:05.8]} 41. Rxd4 {[%clk 0:00:13.6]} 41... d5
{[%clk 0:00:05.8]} 42. Rd3 {[%clk 0:00:13.2]} 42... Rc7 {[%clk 0:00:05.9]} 43.
Re3 {[%clk 0:00:13.1]} 43... Kf7 {[%clk 0:00:04.7]} 44. Ba5 {[%clk 0:00:11.7]}
44... Rc2 {[%clk 0:00:04.2]} 45. Bb4 {[%clk 0:00:11.4]} 45... d4 {[%clk
0:00:04.6]} 46. Rd3 {[%clk 0:00:09.8]} 46... Rxe2 {[%clk 0:00:04.7]} 47. Rxd4
{[%clk 0:00:10]} 47... Rxf2+ {[%clk 0:00:05]} 48. Kg1 {[%clk 0:00:10.5]} 48...
Rb2 {[%clk 0:00:05.2]} 49. Rd3 {[%clk 0:00:10.4]} 49... g5 {[%clk 0:00:04.5]}
50. hxg5 {[%clk 0:00:10.2]} 50... hxg5 {[%clk 0:00:05.4]} 51. Ba5 {[%clk
0:00:09.6]} 51... Kg6 {[%clk 0:00:05.2]} 52. Bc7 {[%clk 0:00:09.6]} 52... Kh5
{[%clk 0:00:05.2]} 53. a4 {[%clk 0:00:10.1]} 53... bxa4 {[%clk 0:00:04.1]} 54.
bxa4 {[%clk 0:00:11]} 54... Ra2 {[%clk 0:00:04.6]} 55. a5 {[%clk 0:00:11.6]}
55... Kg4 {[%clk 0:00:05.2]} 56. Kf1 {[%clk 0:00:11.8]} 56... Nd2+ {[%clk
0:00:04.4]} 57. Ke1 {[%clk 0:00:11.5]} 57... Nf3+ {[%clk 0:00:05]} 58. Kd1
{[%clk 0:00:11.3]} 58... Ra4 {[%clk 0:00:03.9]} 59. Kc1 {[%clk 0:00:10.4]} 59...
Rc4+ {[%clk 0:00:03.8]} 60. Kb2 {[%clk 0:00:10.9]} 60... Rxc7 {[%clk 0:00:04.5]}
61. a6 {[%clk 0:00:11.8]} 61... Rc6 {[%clk 0:00:04.6]} 62. a7 {[%clk 0:00:11]}
62... Rc8 {[%clk 0:00:03.4]} 63. Kb3 {[%clk 0:00:07.7]} 63... Ra8 {[%clk
0:00:03.7]} 64. Rd7 {[%clk 0:00:07.8]} 64... Kxg3 {[%clk 0:00:03.2]} 65. Kb4
{[%clk 0:00:08.7]} 65... f4 {[%clk 0:00:03.7]} 66. Kb5 {[%clk 0:00:09.6]} 66...
g4 {[%clk 0:00:04.2]} 67. Kb6 {[%clk 0:00:10.3]} 67... Ne5 {[%clk 0:00:03.6]}
68. Kb7 {[%clk 0:00:10.8]} 68... Rxa7+ {[%clk 0:00:03.7]} 69. Kxa7 {[%clk
0:00:11.7]} 69... Nxd7 {[%clk 0:00:04]} 0-1